{"text_format":"3","workbook":"xlsx","n_sheets":1,"sheets":["Propuesta"],"not_rendered":{"images":1,"defined_names":20},"read":"whole","date_system":"1900"}

{"sheet":"Propuesta","index":0,"n_rows":39,"n_cols":7,"rows_kept":39,"merged":[[0,1,3,1],[0,3,0,6],[1,4,1,6],[2,4,2,6],[32,3,35,4],[36,3,36,6],[37,3,37,5],[38,3,38,5]]}
[{"$nulls":3},"PROPUESTA DE CONSTRUCCIÓN"]
[{"$nulls":3},"Nombre de la compañía","| Escribe la dirección de la compañía en esta celda."]
[{"$nulls":3},"Teléfono","| Escribe el número de fax y la dirección de correo de contacto de la compañía en esta celda."]
[{"$nulls":3},"CANTIDAD","DESCRIPCIÓN","PRECIO POR UNIDAD","IMPORTE"]
[null,"CLIENTE",null,10,"Elemento 1",{"v":165,"d":"$165.00"},{"$f":"IFERROR(ElementosDeLínea[[#This Row],[CANTIDAD]]*ElementosDeLínea[[#This Row],[PRECIO POR UNIDAD]], \"\")","v":{"v":1650,"d":"$1,650.00"}}]
[null,"Escribe el nombre del cliente en esta celda.",null,21,"Elemento 2",{"v":40,"d":"$40.00"},{"$f":"IFERROR(ElementosDeLínea[[#This Row],[CANTIDAD]]*ElementosDeLínea[[#This Row],[PRECIO POR UNIDAD]], \"\")","v":{"v":840,"d":"$840.00"}}]
[null,"ESTIMACIÓN n.°",null,5,"Elemento 3",{"v":10.5,"d":"$10.50"},{"$f":"IFERROR(ElementosDeLínea[[#This Row],[CANTIDAD]]*ElementosDeLínea[[#This Row],[PRECIO POR UNIDAD]], \"\")","v":{"v":52.5,"d":"$52.50"}}]
[null,"C-1234",null,164,"Elemento 4",{"v":2.75,"d":"$2.75"},{"$f":"IFERROR(ElementosDeLínea[[#This Row],[CANTIDAD]]*ElementosDeLínea[[#This Row],[PRECIO POR UNIDAD]], \"\")","v":{"v":451,"d":"$451.00"}}]
[null,"FECHA",null,6,"Elemento 5",{"v":12,"d":"$12.00"},{"$f":"IFERROR(ElementosDeLínea[[#This Row],[CANTIDAD]]*ElementosDeLínea[[#This Row],[PRECIO POR UNIDAD]], \"\")","v":{"v":72,"d":"$72.00"}}]
[null,{"$f":"TODAY()","v":"2018-11-19"},null,18,"Elemento 6",{"v":5.5,"d":"$5.50"},{"$f":"IFERROR(ElementosDeLínea[[#This Row],[CANTIDAD]]*ElementosDeLínea[[#This Row],[PRECIO POR UNIDAD]], \"\")","v":{"v":99,"d":"$99.00"}}]
[null,"DIRECCIÓN",null,1,"Elemento 7",{"v":25,"d":"$25.00"},{"$f":"IFERROR(ElementosDeLínea[[#This Row],[CANTIDAD]]*ElementosDeLínea[[#This Row],[PRECIO POR UNIDAD]], \"\")","v":{"v":25,"d":"$25.00"}}]
[null,"Escribe la dirección postal del cliente en esta celda.",{"$nulls":4},{"$f":"IFERROR(ElementosDeLínea[[#This Row],[CANTIDAD]]*ElementosDeLínea[[#This Row],[PRECIO POR UNIDAD]], \"\")","v":{"v":0,"d":"$0.00"}}]
[null,"CIUDAD, ESTADO Y CÓDIGO POSTAL",{"$nulls":4},{"$f":"IFERROR(ElementosDeLínea[[#This Row],[CANTIDAD]]*ElementosDeLínea[[#This Row],[PRECIO POR UNIDAD]], \"\")","v":{"v":0,"d":"$0.00"}}]
[null,"Escribe la ciudad, el estado y el código postal del cliente en esta celda.",{"$nulls":4},{"$f":"IFERROR(ElementosDeLínea[[#This Row],[CANTIDAD]]*ElementosDeLínea[[#This Row],[PRECIO POR UNIDAD]], \"\")","v":{"v":0,"d":"$0.00"}}]
[null,"TELÉFONO",{"$nulls":4},{"$f":"IFERROR(ElementosDeLínea[[#This Row],[CANTIDAD]]*ElementosDeLínea[[#This Row],[PRECIO POR UNIDAD]], \"\")","v":{"v":0,"d":"$0.00"}}]
[null,"Escribe el número de teléfono del cliente en esta celda.",{"$nulls":4},{"$f":"IFERROR(ElementosDeLínea[[#This Row],[CANTIDAD]]*ElementosDeLínea[[#This Row],[PRECIO POR UNIDAD]], \"\")","v":{"v":0,"d":"$0.00"}}]
[null,"CORREO:",{"$nulls":4},{"$f":"IFERROR(ElementosDeLínea[[#This Row],[CANTIDAD]]*ElementosDeLínea[[#This Row],[PRECIO POR UNIDAD]], \"\")","v":{"v":0,"d":"$0.00"}}]
[null,"Escribe la dirección de correo del cliente en esta celda.",{"$nulls":4},{"$f":"IFERROR(ElementosDeLínea[[#This Row],[CANTIDAD]]*ElementosDeLínea[[#This Row],[PRECIO POR UNIDAD]], \"\")","v":{"v":0,"d":"$0.00"}}]
[null,"VENDEDOR",{"$nulls":4},{"$f":"IFERROR(ElementosDeLínea[[#This Row],[CANTIDAD]]*ElementosDeLínea[[#This Row],[PRECIO POR UNIDAD]], \"\")","v":{"v":0,"d":"$0.00"}}]
[null,"Escribe el nombre del vendedor en esta celda.",{"$nulls":4},{"$f":"IFERROR(ElementosDeLínea[[#This Row],[CANTIDAD]]*ElementosDeLínea[[#This Row],[PRECIO POR UNIDAD]], \"\")","v":{"v":0,"d":"$0.00"}}]
[null,"PROYECTO",{"$nulls":4},{"$f":"IFERROR(ElementosDeLínea[[#This Row],[CANTIDAD]]*ElementosDeLínea[[#This Row],[PRECIO POR UNIDAD]], \"\")","v":{"v":0,"d":"$0.00"}}]
[null,"Escribe el nombre del proyecto en esta celda.",{"$nulls":4},{"$f":"IFERROR(ElementosDeLínea[[#This Row],[CANTIDAD]]*ElementosDeLínea[[#This Row],[PRECIO POR UNIDAD]], \"\")","v":{"v":0,"d":"$0.00"}}]
[null,"PREPARADO POR:",{"$nulls":4},{"$f":"IFERROR(ElementosDeLínea[[#This Row],[CANTIDAD]]*ElementosDeLínea[[#This Row],[PRECIO POR UNIDAD]], \"\")","v":{"v":0,"d":"$0.00"}}]
[null,"Escribe el nombre de la persona que prepara en esta celda.",{"$nulls":4},{"$f":"IFERROR(ElementosDeLínea[[#This Row],[CANTIDAD]]*ElementosDeLínea[[#This Row],[PRECIO POR UNIDAD]], \"\")","v":{"v":0,"d":"$0.00"}}]
[null,"ATENCIÓN",{"$nulls":4},{"$f":"IFERROR(ElementosDeLínea[[#This Row],[CANTIDAD]]*ElementosDeLínea[[#This Row],[PRECIO POR UNIDAD]], \"\")","v":{"v":0,"d":"$0.00"}}]
[null,"Escribe la propuesta de la dirección de nombre de esta celda.",{"$nulls":4},{"$f":"IFERROR(ElementosDeLínea[[#This Row],[CANTIDAD]]*ElementosDeLínea[[#This Row],[PRECIO POR UNIDAD]], \"\")","v":{"v":0,"d":"$0.00"}}]
[null,"CONDICIONES DE PAGO",{"$nulls":4},{"$f":"IFERROR(ElementosDeLínea[[#This Row],[CANTIDAD]]*ElementosDeLínea[[#This Row],[PRECIO POR UNIDAD]], \"\")","v":{"v":0,"d":"$0.00"}}]
[null,"Pago a 30 días",{"$nulls":4},{"$f":"IFERROR(ElementosDeLínea[[#This Row],[CANTIDAD]]*ElementosDeLínea[[#This Row],[PRECIO POR UNIDAD]], \"\")","v":{"v":0,"d":"$0.00"}}]
[null,"FECHA DE VENCIMIENTO",{"$nulls":4},{"$f":"IFERROR(ElementosDeLínea[[#This Row],[CANTIDAD]]*ElementosDeLínea[[#This Row],[PRECIO POR UNIDAD]], \"\")","v":{"v":0,"d":"$0.00"}}]
[null,{"$f":"TODAY()+30","v":"2018-12-19"},{"$nulls":4},{"$f":"IFERROR(ElementosDeLínea[[#This Row],[CANTIDAD]]*ElementosDeLínea[[#This Row],[PRECIO POR UNIDAD]], \"\")","v":{"v":0,"d":"$0.00"}}]
[{"$nulls":5},"SUBTOTAL",{"$f":"SUBTOTAL(109,ElementosDeLínea[IMPORTE])","v":{"v":3189.5,"d":"$3,189.50"}}]
[{"$nulls":3},"ESTA PROPUESTA INCLUYE LAS CONDICIONES QUE SE INDICAN:",null,"TASA DE IMPUESTO ",{"v":0.0775,"d":"7.75%"}]
[{"$nulls":3},"Escribe aquí las condiciones",null,"IMPUESTO SOBRE LAS VENTAS ",{"$f":"IFERROR(Subtotal*TasaDeImpuestos, \"\")","v":{"v":247.18625,"d":"$247.19"}}]
[{"$nulls":5},"OTROS "]
[{"$nulls":5},"TOTAL ",{"$f":"IFERROR(Subtotal+G33+Otro, \"\")","v":{"v":3436.68625,"d":"$3,436.69"}}]
[]
[{"$nulls":3},"Firma abajo para aceptar la oferta:"]
[]
[{"$nulls":3},"Representante autorizado",null,null,"Fecha"]